fUST/lending_fUST_20250810
["ID","MTS","AMOUNT","RATE_DAILY","PERIOD"]
[378332395,1754829038264,-136.40410466,0.00019998,2]
[378332397,1754829038275,-460.0,0.00019998,2]
[378332399,1754829038286,-460.0,0.00019998,2]
[378332401,1754829038297,-460.0,0.00019999,2]
[378332404,1754829038308,-460.0,0.00019999,2]
[378332406,1754829038319,-460.0,0.00019999,2]
[378332408,1754829038330,-460.0,0.00019999,2]
[378332410,1754829038341,-460.0,0.00019999,2]
[378332412,1754829038352,-460.0,0.00019999,2]
[378332414,1754829038363,-460.0,0.00019999,2]
[378332417,1754829038374,-460.0,0.00019999,2]
[378332419,1754829038385,-460.0,0.00019999,2]
[378332421,1754829038396,-830.18,0.00019999,2]
[378332423,1754829038407,-460.0,0.00019999,2]
[378332425,1754829038418,-76.69499624,0.00019999,2]
[378332428,1754829038431,-500.65721032,0.00019999,2]
[378332430,1754829038442,-460.0,0.00019999,2]
[378332432,1754829038452,-460.0,0.00019999,2]
[378332435,1754829038464,-460.0,0.00019999,2]
[378332438,1754829038476,-460.0,0.00019999,2]
[378332440,1754829038489,-460.0,0.00019999,2]
[378332442,1754829038500,-460.0,0.00019999,2]
[378332444,1754829038511,-460.0,0.00019999,2]
[378332446,1754829038523,-460.0,0.00019999,2]
[378332448,1754829038533,-460.0,0.00019999,2]
[378332450,1754829038544,-460.0,0.00019999,2]
[378332453,1754829038557,-460.0,0.00019999,2]
[378332455,1754829038569,-939.54,0.00019999,2]
[378332457,1754829038580,-460.0,0.00019999,2]
[378332459,1754829038591,-460.0,0.00019999,2]
[378332461,1754829038602,-460.0,0.00019999,2]
[378332464,1754829038612,-460.0,0.00019999,2]
[378332466,1754829038623,-460.0,0.00019999,2]
[378332468,1754829038633,-460.0,0.00019999,2]
[378332470,1754829038644,-460.0,0.00019999,2]
[378332472,1754829038654,-460.0,0.00019999,2]
[378332474,1754829038665,-944.31,0.00019999,2]
[378332476,1754829038675,-508.35,0.00019999,2]
[378332478,1754829038686,-460.0,0.00019999,2]
[378332480,1754829038698,-460.0,0.00019999,2]
[378332482,1754829038708,-460.0,0.00019999,2]
[378332485,1754829038719,-460.0,0.00019999,2]
[378332487,1754829038730,-482.82921519,0.00019999,2]
[378332489,1754829038741,-460.0,0.00019999,2]
[378332491,1754829038752,-460.0,0.00019999,2]
[378332493,1754829038763,-460.0,0.00019999,2]
[378332495,1754829038773,-460.0,0.00019999,2]
[378332497,1754829038783,-460.0,0.00019999,2]
[378332499,1754829038794,-13857.84016027,0.0002,14]
[378332501,1754829038804,-9401.10877154,0.0002,2]
[378332503,1754829038814,-152.20105067,0.0002,7]
[378332506,1754829038823,-364.04606541,0.0002,2]
[378332507,1754829038832,-7156.3163707,0.0002,2]
[378332510,1754829038842,-460.0,0.00020169,2]
[378332511,1754829038851,-460.0,0.00020169,2]
[378332530,1754829039012,-500.0,0.00020187,2]
[378332533,1754829039029,-325.304154,0.00020187,2]
[378332535,1754829039048,-501.32876335,0.0002027,2]
[378332537,1754829039065,-460.0,0.0002027,2]
[378332539,1754829039076,-460.0,0.0002027,2]
[378332541,1754829039086,-460.0,0.0002027,2]
[378332543,1754829039095,-460.0,0.0002027,2]
[378332545,1754829039104,-460.0,0.0002027,2]
[378332547,1754829039127,-460.0,0.0002027,2]
[378332550,1754829039138,-460.0,0.0002027,2]
[378332551,1754829039148,-460.0,0.0002027,2]
[378332554,1754829039158,-460.0,0.0002027,2]
[378332556,1754829039167,-470.12217006,0.0002027,2]
[378332558,1754829039176,-460.0,0.0002027,2]
[378332559,1754829039186,-460.0,0.0002027,2]
[378332561,1754829039195,-460.0,0.0002027,2]
[378332563,1754829039205,-460.0,0.0002027,2]
[378332565,1754829039215,-460.0,0.0002027,2]
[378332568,1754829039224,-460.0,0.0002027,2]
[378332570,1754829039233,-460.0,0.0002027,2]
[378332572,1754829039243,-460.0,0.0002027,2]
[378332574,1754829039252,-460.0,0.0002027,2]
[378332576,1754829039262,-460.0,0.0002027,2]
[378332577,1754829039272,-460.0,0.0002027,2]
[378332580,1754829039281,-460.0,0.0002027,2]
[378332582,1754829039291,-470.45899803,0.0002027,2]
[378332583,1754829039300,-460.0,0.0002027,2]
[378332585,1754829039308,-460.0,0.0002027,2]
[378332587,1754829039319,-325.11420844,0.0002027,2]
[378332589,1754829039328,-460.0,0.0002027,2]
[378332591,1754829039337,-552.80911126,0.0002027,2]
[378332593,1754829039347,-460.0,0.0002027,2]
[378332596,1754829039358,-460.0,0.0002027,2]
[378332598,1754829039367,-460.0,0.0002027,2]
[378332600,1754829039377,-465.66966063,0.0002027,2]
[378332601,1754829039386,-556.01172158,0.0002027,2]
[378332604,1754829039395,-460.0,0.0002027,2]
[378332606,1754829039404,-460.0,0.0002027,2]
[378332608,1754829039414,-151.68368688,0.0002027,2]
[378332610,1754829039423,-460.0,0.0002027,2]
[378332611,1754829039432,-460.0,0.0002027,2]
[378332614,1754829039442,-460.0,0.0002027,2]
[378332615,1754829039451,-460.0,0.0002027,2]
[378332618,1754829039462,-460.0,0.0002027,2]
[378332620,1754829039472,-460.0,0.0002027,2]
[378332622,1754829039484,-460.0,0.0002027,2]
[378332624,1754829039494,-460.0,0.0002027,2]
[378332626,1754829039503,-460.0,0.0002027,2]
[378332628,1754829039512,-740.32,0.0002027,2]
[378332630,1754829039523,-738.29,0.0002027,2]
[378332632,1754829039545,-460.0,0.0002027,2]
[378332633,1754829039555,-460.0,0.0002027,2]
[378332636,1754829039564,-460.0,0.0002027,2]
[378332637,1754829039573,-460.0,0.0002027,2]
[378332639,1754829039583,-460.0,0.0002027,2]
[378332641,1754829039592,-460.0,0.0002027,2]
[378332643,1754829039602,-460.0,0.0002027,2]
[378332646,1754829039611,-500.0,0.0002027,2]
[378332647,1754829039622,-460.0,0.0002027,2]
[378332649,1754829039631,-460.0,0.0002027,2]
[378332651,1754829039641,-460.0,0.0002027,2]
[378332653,1754829039650,-462.37168746,0.0002027,2]
[378332656,1754829039659,-460.0,0.0002027,2]
[378332658,1754829039669,-198.543783,0.0002027,2]
[378332659,1754829039679,-569.96,0.0002027,2]
[378332662,1754829039688,-460.0,0.0002027,2]
[378332663,1754829039697,-238.57147051,0.0002027,2]
[378332666,1754829039707,-460.0,0.0002027,2]
[378332667,1754829039716,-460.0,0.0002027,2]
[378332670,1754829039725,-460.0,0.0002027,2]
[378332671,1754829039734,-460.0,0.00020271,2]
[378332674,1754829039743,-460.0,0.00020271,2]
[378332676,1754829039753,-460.0,0.00020271,2]
[378332678,1754829039762,-460.0,0.00020271,2]
[378332680,1754829039772,-460.0,0.00020271,2]
[378332682,1754829039782,-460.0,0.00020271,2]
[378332684,1754829039792,-501.46,0.00020271,2]
[378332685,1754829039801,-460.0,0.00020271,2]
[378332688,1754829039810,-460.0,0.00020271,2]
[378332689,1754829039819,-460.0,0.00020271,2]
[378332692,1754829039828,-460.0,0.00020271,2]
[378332694,1754829039838,-460.0,0.00020271,2]
[378332695,1754829039847,-460.0,0.00020271,2]
[378332698,1754829039857,-460.0,0.00020271,2]
[378332700,1754829039866,-462.73182131,0.00020271,2]
[378332701,1754829039875,-460.0,0.00020271,2]
[378332704,1754829039884,-460.0,0.00020271,2]
[378332705,1754829039893,-460.0,0.00020271,2]
[378332708,1754829039903,-460.0,0.00020271,2]
[378332709,1754829039912,-460.0,0.00020271,2]
[378332712,1754829039922,-465.25282102,0.00020271,2]
[378332714,1754829039931,-460.0,0.00020271,2]
[378332716,1754829039940,-564.65749663,0.00020271,2]
[378332718,1754829039949,-460.0,0.00020271,2]
[378332719,1754829039958,-460.0,0.00020271,2]
[378332720,1754829039967,-460.0,0.00020271,2]
[378332721,1754829039976,-460.0,0.00020271,2]
[378332722,1754829039985,-460.0,0.00020271,2]
[378332723,1754829039994,-2472.43,0.00020271,2]
[378332724,1754829040004,-460.0,0.00020271,2]
[378332725,1754829040013,-460.0,0.00020271,2]
[378332726,1754829040022,-460.0,0.00020271,2]
[378332727,1754829040031,-460.0,0.00020271,2]
[378332728,1754829040040,-460.0,0.00020271,2]
[378332729,1754829040049,-460.0,0.00020271,2]
[378332730,1754829040059,-460.0,0.00020271,2]
[378332731,1754829040068,-460.0,0.00020271,2]
[378332732,1754829040078,-460.0,0.00020271,2]
[378332733,1754829040087,-722.42,0.00020271,2]
[378332734,1754829040096,-595.24,0.00020271,2]
[378332735,1754829040106,-460.0,0.00020271,2]
[378332736,1754829040115,-283.24,0.00020271,2]
[378332737,1754829040124,-460.0,0.00020271,2]
[378332738,1754829040134,-460.0,0.00020271,2]
[378332739,1754829040144,-354.1,0.00020271,2]
[378332740,1754829040154,-887.8,0.00020271,2]
[378332741,1754829040163,-460.0,0.00020272,2]
[378332742,1754829040173,-870.3,0.00020272,2]
[378332743,1754829040182,-460.0,0.00020272,2]
[378332744,1754829040192,-1247.5,0.00020273,2]
[378332745,1754829040202,-460.0,0.00020273,2]
[378332746,1754829040213,-460.0,0.00020273,2]
[378332747,1754829040222,-460.0,0.00020273,2]
[378332748,1754829040231,-460.0,0.00020273,2]
[378332749,1754829040241,-394.65094181,0.00020273,2]
[378332750,1754829040250,-460.0,0.00020273,2]
[378332751,1754829040260,-460.0,0.00020273,2]
[378332752,1754829040269,-460.0,0.00020273,2]
[378332753,1754829040278,-460.0,0.00020273,2]
[378332754,1754829040287,-504.7835306,0.00020273,2]
[378332755,1754829040297,-466.84707138,0.00020273,2]
[378332756,1754829040306,-460.0,0.00020273,2]
[378332757,1754829040316,-460.0,0.00020273,2]
[378332758,1754829040325,-460.0,0.00020273,2]
[378332759,1754829040335,-460.0,0.00020273,2]
[378332760,1754829040344,-460.0,0.00020273,2]
[378332761,1754829040353,-566.37,0.00020273,2]
[378332762,1754829040363,-1226.89,0.00020273,2]
[378332763,1754829040372,-460.0,0.00020273,2]
[378332764,1754829040381,-460.0,0.00020273,2]
[378332765,1754829040391,-460.0,0.00020273,2]
[378332766,1754829040401,-460.0,0.00020273,2]
[378332767,1754829040410,-415.83338739,0.00020273,2]
[378332768,1754829040419,-460.0,0.00020273,2]
[378332769,1754829040429,-830.18,0.00020273,2]
[378332770,1754829040438,-460.0,0.00020273,2]
[378332772,1754829040451,-460.0,0.00020273,2]
[378332773,1754829040461,-460.0,0.00020273,2]
[378332774,1754829040471,-433.22478134,0.00020273,2]
[378332775,1754829040483,-460.0,0.00020273,2]
[378332776,1754829040493,-939.54,0.00020273,2]
[378332777,1754829040502,-460.0,0.00020273,2]
[378332778,1754829040512,-460.0,0.00020273,2]
[378332779,1754829040523,-460.0,0.00020273,2]
[378332780,1754829040532,-460.0,0.00020273,2]
[378332781,1754829040542,-944.31,0.00020273,2]
[378332782,1754829040551,-508.35,0.00020273,2]
[378332783,1754829040561,-274.63,0.00020273,2]
[378332784,1754829040570,-460.0,0.00020273,2]
[378332785,1754829040579,-460.0,0.00020273,2]
[378332786,1754829040589,-460.0,0.00020273,2]
[378332787,1754829040598,-460.0,0.00020273,2]
[378332788,1754829040607,-460.0,0.00020273,2]
[378332789,1754829040617,-2329.79609566,0.00020361,2]
[378332790,1754829040626,-3958.51328387,0.00020373,2]
[378332791,1754829040635,-1902.43,0.00020436,3]
[378332792,1754829040645,-951.22,0.00020436,3]
[378332793,1754829040654,-475.61,0.00020436,3]
[378332794,1754829040664,-237.8,0.00020436,3]
[378332795,1754829040673,-706.08,0.00020436,3]
[378332796,1754829040685,-353.04,0.00020436,3]
[378332797,1754829040693,-294.2,0.00020436,3]
[378332799,1754829040703,-882.65,0.00020436,3]
[378332801,1754829040713,-460.0,0.00020443,2]
[378332802,1754829040722,-500.0,0.00020445,2]
[378332803,1754829040731,-500.0,0.00020445,2]
[378332804,1754829040740,-500.0,0.00020445,2]
[378332805,1754829040750,-500.0,0.00020445,2]
[378332807,1754829040759,-500.0,0.00020445,2]
[378332808,1754829040768,-500.0,0.00020445,2]
[378332810,1754829040778,-500.0,0.00020445,2]
[378332812,1754829040787,-343.79809494,0.00020445,2]
[378332814,1754829040796,-500.0,0.00020445,2]
[378332816,1754829040806,-500.0,0.00020445,2]
[378332819,1754829040815,-500.0,0.00020445,2]
[378332821,1754829040825,-500.0,0.00020445,2]
[378332823,1754829040835,-500.0,0.00020445,2]
[378332825,1754829040845,-500.0,0.00020445,2]
[378332827,1754829040854,-450.0,0.00020445,2]
[378332829,1754829040863,-170.13632456,0.00020445,2]
[378332831,1754829040872,-258294.33245235,0.00020446,2]
[378332833,1754829040881,-500.0,0.00020461,2]
[378332835,1754829040890,-500.0,0.00020473,2]
[378332837,1754829040899,-5000.0,0.00020509,2]
[378332839,1754829040909,-460.0,0.00020544,2]
[378332841,1754829040918,-460.0,0.00020544,2]
[378332843,1754829040927,-460.0,0.00020544,2]
[378332845,1754829040936,-460.0,0.00020544,2]
[378332847,1754829040945,-460.0,0.00020544,2]
[378332849,1754829040954,-460.0,0.00020544,2]
[378332851,1754829040964,-473.69530418,0.00020544,2]
[378332853,1754829040973,-460.0,0.00020544,2]
[378332855,1754829040982,-460.0,0.00020544,2]
[378332857,1754829040991,-460.0,0.00020544,2]
[378332859,1754829041000,-460.0,0.00020544,2]
[378332861,1754829041009,-198.59703102,0.00020544,2]
[378332862,1754829041019,-460.0,0.00020544,2]
[378332865,1754829041028,-740.32,0.00020544,2]
[378332866,1754829041037,-738.29,0.00020544,2]
[378332869,1754829041047,-460.0,0.00020544,2]
[378332871,1754829041056,-460.0,0.00020544,2]
[378332873,1754829041065,-460.0,0.00020544,2]
[378332874,1754829041075,-460.0,0.00020544,2]
[378332876,1754829041084,-494.96218489,0.00020544,2]
[378332879,1754829041094,-569.96,0.00020544,2]
[378332880,1754829041103,-460.0,0.00020544,2]
[378332883,1754829041114,-460.0,0.00020544,2]
[378332885,1754829041123,-460.0,0.00020544,2]
[378332887,1754829041132,-460.0,0.00020545,2]
[378332889,1754829041141,-460.0,0.00020545,2]
[378332891,1754829041151,-460.0,0.00020545,2]
[378332892,1754829041160,-460.0,0.00020545,2]
[378332893,1754829041170,-460.0,0.00020545,2]
[378332894,1754829041179,-460.0,0.00020545,2]
[378332895,1754829041189,-460.0,0.00020545,2]
[378332896,1754829041198,-460.0,0.00020545,2]
[378332897,1754829041207,-2472.43,0.00020545,2]
[378332898,1754829041216,-562.75,0.00020545,2]
[378332899,1754829041225,-460.0,0.00020545,2]
[378332900,1754829041234,-722.42,0.00020545,2]
[378332901,1754829041243,-518.3134229,0.00020545,2]
[378332902,1754829041252,-460.0,0.00020545,2]
[378332903,1754829041261,-887.8,0.00020545,2]
[378332904,1754829041270,-870.3,0.00020546,2]
[378332905,1754829041279,-460.0,0.00020546,2]
[378332906,1754829041289,-1247.5,0.00020547,2]
[378332908,1754829041299,-460.0,0.00020547,2]
[378332910,1754829041308,-460.0,0.00020547,2]
[378332912,1754829041317,-300.22863894,0.00020547,2]
[378332914,1754829041326,-460.0,0.00020547,2]
[378332916,1754829041336,-1226.89,0.00020547,2]
[378332918,1754829041345,-460.0,0.00020547,2]
[378332920,1754829041354,-460.0,0.00020547,2]
[378332922,1754829041363,-460.0,0.00020547,2]
[378332924,1754829041373,-830.18,0.00020547,2]
[378332926,1754829041383,-460.0,0.00020547,2]
[378332928,1754829041392,-389.16080971,0.00020547,2]
[378332930,1754829041401,-460.0,0.00020547,2]
[378332932,1754829041410,-460.0,0.00020547,2]
[378332934,1754829041420,-939.54,0.00020547,2]
[378332936,1754829041429,-460.0,0.00020547,2]
[378332938,1754829041439,-944.31,0.00020547,2]
[378332940,1754829041448,-508.35,0.00020547,2]
[378332942,1754829041457,-460.0,0.00020547,2]
[378332944,1754829041466,-460.0,0.00020547,2]
[378332945,1754829041475,-460.0,0.00020547,2]
[378332948,1754829041489,-460.0,0.00020717,2]
[378332950,1754829041499,-338.07057274,0.00020818,2]
[378332951,1754829041510,-488.19,0.00020818,2]
[378332953,1754829041520,-460.0,0.00020818,2]
[378332955,1754829041530,-186.7298308,0.00020818,2]
[378332958,1754829041541,-460.0,0.00020818,2]
[378332960,1754829041552,-740.32,0.00020818,2]
[378332962,1754829041562,-738.29,0.00020818,2]
[378332963,1754829041572,-460.0,0.00020818,2]
[378332966,1754829041581,-460.0,0.00020818,2]
[378332967,1754829041590,-460.0,0.00020818,2]
[378332969,1754829041600,-460.0,0.00020818,2]
[378332971,1754829041609,-569.96,0.00020818,2]
[378332973,1754829041619,-460.0,0.00020818,2]
[378332976,1754829041628,-460.0,0.00020819,2]
[378332977,1754829041637,-460.0,0.00020819,2]
[378332980,1754829041647,-460.0,0.00020819,2]
[378332981,1754829041656,-2472.43,0.00020819,2]
[378332983,1754829041666,-460.0,0.00020819,2]
[378332985,1754829041676,-722.42,0.00020819,2]
[378332988,1754829041687,-460.0,0.00020819,2]
[378332989,1754829041696,-887.8,0.00020819,2]
[378332992,1754829041706,-870.3,0.0002082,2]
[378332994,1754829041715,-460.0,0.0002082,2]
[378332995,1754829041724,-1247.5,0.00020821,2]
[378332998,1754829041734,-587.26,0.00020821,2]
[378332999,1754829041743,-1226.89,0.00020821,2]
[378333001,1754829041752,-460.0,0.00020821,2]
[378333004,1754829041763,-460.0,0.00020821,2]
[378333006,1754829041772,-830.18,0.00020821,2]
[378333007,1754829041781,-460.0,0.00020821,2]
[378333009,1754829041790,-460.0,0.00020821,2]
[378333012,1754829041800,-460.0,0.00020821,2]
[378333014,1754829041809,-939.54,0.00020821,2]
[378333016,1754829041818,-460.0,0.00020821,2]
[378333017,1754829041827,-944.31,0.00020821,2]
[378333019,1754829041838,-508.35,0.00020821,2]
[378333022,1754829041848,-400.51,0.00020821,2]
[378333023,1754829041857,-460.0,0.00020821,2]
[378333026,1754829041867,-460.0,0.00020991,2]
[378333028,1754829041877,-200.0,0.00020998,15]
[378333030,1754829041888,-300.0,0.00020998,15]
[378333032,1754829041897,-1000.0,0.00021021,2]
[378333034,1754829041907,-460.0,0.00021092,2]
[378333036,1754829041916,-460.0,0.00021092,2]
[378333038,1754829041925,-740.32,0.00021092,2]
[378333040,1754829041934,-738.29,0.00021092,2]
[378333042,1754829041944,-460.0,0.00021092,2]
[378333044,1754829041953,-460.0,0.00021092,2]
[378333045,1754829041963,-460.0,0.00021092,2]
[378333047,1754829041972,-569.96,0.00021092,2]
[378333049,1754829041981,-460.0,0.00021092,2]
[378333051,1754829041990,-460.0,0.00021093,2]
[378333053,1754829041999,-460.0,0.00021093,2]
[378333055,1754829042009,-460.0,0.00021093,2]
[378333057,1754829042018,-2472.43,0.00021093,2]
[378333059,1754829042027,-460.0,0.00021093,2]
[378333061,1754829042037,-722.42,0.00021093,2]
[378333063,1754829042046,-887.8,0.00021093,2]
[378333065,1754829042055,-870.3,0.00021094,2]
[378333067,1754829042064,-460.0,0.00021094,2]
[378333069,1754829042073,-1247.5,0.00021095,2]
[378333071,1754829042082,-460.0,0.00021095,2]
[378333073,1754829042091,-1226.89,0.00021095,2]
[378333075,1754829042100,-460.0,0.00021095,2]
[378333077,1754829042110,-830.18,0.00021095,2]
[378333079,1754829042119,-587.1,0.00021095,2]
[378333081,1754829042129,-460.0,0.00021095,2]
[378333083,1754829042138,-939.54,0.00021095,2]
[378333097,1754829042259,-460.0,0.00021095,2]
[378333099,1754829042270,-944.31,0.00021095,2]
[378333101,1754829042279,-508.35,0.00021095,2]
[378333103,1754829042289,-460.0,0.00021265,2]
[378333106,1754829042299,-460.0,0.00021366,2]
[378333108,1754829042309,-460.0,0.00021366,2]
[378333110,1754829042319,-740.32,0.00021366,2]
[378333112,1754829042328,-738.29,0.00021366,2]
[378333114,1754829042337,-460.0,0.00021366,2]
[378333116,1754829042347,-460.0,0.00021366,2]
[378333117,1754829042357,-460.0,0.00021366,2]
[378333120,1754829042367,-569.96,0.00021366,2]
[378333122,1754829042377,-486.37,0.00021366,2]
[378333123,1754829042387,-460.0,0.00021367,2]
[378333126,1754829042397,-460.0,0.00021367,2]
[378333128,1754829042407,-460.0,0.00021367,2]
[378333130,1754829042416,-2472.43,0.00021367,2]
[378333132,1754829042425,-460.0,0.00021367,2]
[378333134,1754829042434,-722.42,0.00021367,2]
[378333136,1754829042444,-887.8,0.00021367,2]
[378333138,1754829042454,-870.3,0.00021368,2]
[378333139,1754829042463,-460.0,0.00021368,2]
[378333142,1754829042473,-1247.5,0.00021369,2]
[378333144,1754829042486,-460.0,0.00021369,2]
[378333146,1754829042496,-1226.89,0.00021369,2]
[378333148,1754829042505,-460.0,0.00021369,2]
[378333150,1754829042515,-830.18,0.00021369,2]
[378333152,1754829042524,-939.54,0.00021369,2]
[378333154,1754829042533,-944.31,0.00021369,2]
[378333156,1754829042542,-508.35,0.00021369,2]
[378333158,1754829042552,-2329.79609565,0.00021408,2]
[378333160,1754829042563,-300.71929134,0.00021526,2]
[378333162,1754829042573,-460.0,0.00021539,2]
[378333163,1754829042583,-1016.34251529,0.00021568,2]
[378333165,1754829042592,-527.86640923,0.00021631,3]
[378333167,1754829042601,-461.62346162,0.00021631,3]
[378333170,1754829042612,-2063.38766631,0.00021631,3]
[378333172,1754829042621,-215.44987349,0.00021631,3]
[378333174,1754829042631,-460.0,0.0002164,2]
[378333176,1754829042640,-740.32,0.0002164,2]
[378333178,1754829042649,-738.29,0.0002164,2]
[378333180,1754829042659,-460.0,0.0002164,2]
[378333182,1754829042669,-362.12,0.0002164,2]
[378333184,1754829042678,-460.0,0.0002164,2]
[378333186,1754829042687,-569.96,0.0002164,2]
[378333188,1754829042696,-460.0,0.00021641,2]
[378333190,1754829042705,-169.07190181,0.00021641,2]
[378333192,1754829042715,-460.0,0.00021641,2]
[378333194,1754829042724,-2472.43,0.00021641,2]
[378333196,1754829042733,-460.0,0.00021641,2]
[378333198,1754829042743,-722.42,0.00021641,2]
[378333200,1754829042752,-887.8,0.00021641,2]
[378333202,1754829042761,-870.3,0.00021642,2]
[378333204,1754829042770,-460.0,0.00021642,2]
[378333205,1754829042780,-1247.5,0.00021643,2]
[378333207,1754829042789,-460.0,0.00021643,2]
[378333210,1754829042799,-1226.89,0.00021643,2]
[378333212,1754829042809,-460.0,0.00021643,2]
[378333214,1754829042819,-830.18,0.00021643,2]
[378333216,1754829042828,-939.54,0.00021643,2]
[378333217,1754829042838,-944.31,0.00021643,2]
[378333220,1754829042847,-508.35,0.00021643,2]
[378333221,1754829042856,-5619.68378043,0.00021655,2]
[378333224,1754829042866,-500.0,0.000217,2]
[378333225,1754829042875,-500.0,0.000217,2]
[378333228,1754829042885,-500.0,0.000217,2]
[378333231,1754829042894,-3804.86,0.00021806,3]
[378333234,1754829042904,-1902.44,0.00021806,3]
[378333238,1754829042913,-951.22,0.00021806,3]
[378333240,1754829042923,-475.6,0.00021806,3]
[378333242,1754829042932,-1412.16,0.00021806,3]
[378333244,1754829042941,-588.4,0.00021806,3]
[378333247,1754829042951,-312.16666667,0.00021806,3]
[378333249,1754829042961,-460.0,0.00021813,2]
[378333251,1754829042970,-460.0,0.00021914,2]
[378333253,1754829042980,-740.32,0.00021914,2]
[378333255,1754829042989,-738.29,0.00021914,2]
[378333257,1754829042998,-460.0,0.00021914,2]
[378333259,1754829043007,-460.0,0.00021914,2]
[378333261,1754829043017,-569.96,0.00021914,2]
[378333263,1754829043026,-460.0,0.00021915,2]
[378333265,1754829043035,-460.0,0.00021915,2]
[378333268,1754829043045,-2472.43,0.00021915,2]
[378333269,1754829043054,-266.88,0.00021915,2]
[378333272,1754829043064,-722.42,0.00021915,2]
[378333275,1754829043073,-887.8,0.00021915,2]
[378333278,1754829043083,-870.3,0.00021916,2]
[378333281,1754829043092,-460.0,0.00021916,2]
[378333284,1754829043101,-1247.5,0.00021917,2]
[378333286,1754829043110,-500.0,0.00021917,2]
[378333289,1754829043119,-500.0,0.00021917,2]
[378333291,1754829043128,-460.0,0.00021917,2]
[378333293,1754829043138,-1226.89,0.00021917,2]
[378333295,1754829043147,-460.0,0.00021917,2]
[378333297,1754829043156,-830.18,0.00021917,2]
[378333298,1754829043166,-939.54,0.00021917,2]
[378333301,1754829043175,-944.31,0.00021917,2]
[378333303,1754829043185,-508.35,0.00021917,2]
[378333304,1754829043194,-4088.94,0.00021917,2]
[378333306,1754829043203,-966.88,0.00022,2]
[378333308,1754829043212,-166.0,0.00022,2]
[378333310,1754829043222,-461.62346162,0.00022034,2]
[378333312,1754829043231,-215.44987349,0.00022034,2]
[378333314,1754829043240,-216.64838636,0.00022034,2]
[378333316,1754829043249,-231.96268195,0.00022034,2]
[378333318,1754829043258,-160.0,0.00022034,2]
[378333320,1754829043268,-160.0,0.00022034,2]
[378333322,1754829043277,-160.0,0.00022034,2]
[378333324,1754829043287,-843.0869304,0.00022034,2]
[378333326,1754829043296,-527.86640923,0.00022034,2]
[378333328,1754829043306,-312.16666667,0.00022034,2]
[378333330,1754829043315,-160.0,0.00022067,2]
[378333332,1754829043325,-12668.57659669,0.00022067,2]
[378333334,1754829043334,-160.0,0.00022067,2]
[378333336,1754829043343,-160.0,0.00022067,2]
[378333338,1754829043353,-160.0,0.00022067,2]
[378333340,1754829043362,-160.0,0.00022067,2]
[378333342,1754829043371,-160.0,0.00022084,2]
[378333344,1754829043381,-492.99,0.00022087,2]
[378333346,1754829043390,-151.0,0.000221,5]